bitfinex/quotes_SOLUSD_20260305
["timestamp","ask_amount","ask_price","bid_price","bid_amount"]
[1772680351343,1.48834874,90.237,90.184,1.59402441]
[1772680351552,1.48834874,90.237,90.185,1.59402441]
[1772680352554,1.48834874,90.236,90.185,1.59402441]
[1772680353342,1.48834874,90.236,90.187,1.59402441]
[1772680355260,1.48834874,90.234,90.187,1.59402441]
[1772680356962,1.48834874,90.234,90.189,1.59402441]
[1772680359764,1.48834874,90.234,90.191,1.59402441]
[1772680359963,1.48834874,90.256,90.195,1.59402441]
[1772680360961,1.48834874,90.255,90.195,1.59402441]
[1772680362674,1.48834874,90.253,90.197,1.59402441]
[1772680363285,1.48834874,90.269,90.2,1.87834755]
[1772680363479,1.48834874,90.268,90.209,1.59402441]
[1772680363780,1.48834874,90.268,90.215,1.59402441]
[1772680365370,11.07824564,90.267,90.217,1.59402441]
[1772680365577,1.48834874,90.266,90.217,1.59402441]
[1772680367557,1.48834874,90.264,90.219,1.59402441]
[1772680368964,1.48011104,90.262,90.221,1.44347846]
[1772680372265,1.48011104,90.262,90.223,1.44347846]
[1772680374968,1.48011104,90.262,90.225,1.44347846]
[1772680377787,1.48011104,90.262,90.227,1.44347846]
[1772680380975,1.48011104,90.262,90.229,1.44347846]
[1772680382093,5.78304431,90.299,90.229,1.44347846]
[1772680382094,1.48011104,90.289,90.229,1.44347846]
[1772680382293,1.48011104,90.289,90.235,1.44347846]
[1772680382477,1.48011104,90.289,90.237,1.44347846]
[1772680383297,1.48011104,90.288,90.239,1.44347846]
[1772680385494,1.48011104,90.288,90.238,38.78632061]
[1772680385495,1.48011104,90.286,90.236,1.10820515]
[1772680385795,1.48011104,90.279,90.222,1.44347846]
[1772680385993,1.48011104,90.277,90.222,1.44347846]
[1772680386180,1.48011104,90.275,90.222,1.44347846]
[1772680386494,1.48011104,90.273,90.222,1.44347846]
[1772680386679,1.48011104,90.271,90.222,1.44347846]
[1772680386879,1.48011104,90.269,90.222,1.44347846]
[1772680387079,1.48011104,90.267,90.222,1.44347846]
[1772680387298,1.48011104,90.265,90.222,1.44347846]
[1772680387500,1.48011104,90.263,90.222,1.44347846]
[1772680387705,1.48011104,90.261,90.224,1.44347846]
[1772680388485,1.48011104,90.259,90.224,1.44347846]
[1772680389590,1.48011104,90.257,90.225,12.52688106]
[1772680390397,1.48011104,90.257,90.226,1.44347846]
[1772680391801,1.48011104,90.257,90.228,1.44347846]
[1772680392684,1.48011104,90.255,90.228,1.44347846]
[1772680394900,1.48011104,90.253,90.229,11.08291125]
[1772680396092,1.48011104,90.253,90.229,12.52638971]
[1772680399091,1.43710962,90.251,90.229,11.08291125]
[1772680399910,1.43710962,90.249,90.22,11.08401684]
[1772680400110,1.43710962,90.247,90.22,11.08401684]
[1772680400491,1.43710962,90.245,90.22,11.08401684]
[1772680401390,1.43710962,90.243,90.213,11.0848769]
[1772680401703,1.43710962,90.243,90.214,1.46826721]
[1772680403598,1.43710962,90.242,90.215,11.08463115]
[1772680406607,1.43710962,90.242,90.181,104.4]
[1772680406608,1.41596036,90.24,90.208,1.52431002]
[1772680406999,1.41596036,90.24,90.201,1.52431002]
[1772680407304,1.41596036,90.239,90.201,1.52431002]
[1772680408203,1.41596036,90.238,90.201,1.52431002]
[1772680409107,1.41596036,90.235,90.203,1.52431002]
[1772680410494,1.41596036,90.234,90.203,1.52431002]
[1772680411114,1.41596036,90.232,90.205,1.52431002]
[1772680411320,1.41596036,90.232,90.204,11.08598288]
[1772680411897,1.41596036,90.232,90.204,12.6102929]
[1772680412298,1.41596036,90.232,90.205,1.52431002]
[1772680412801,1.41596036,90.231,90.205,1.52431002]
[1772680413218,1.41596036,90.229,90.206,11.08573709]
[1772680415321,1.41596036,90.229,90.206,1.52431002]
[1772680415625,4.24392309,90.26,90.207,1.52431002]
[1772680415626,1.10820515,90.248,90.207,1.52431002]
[1772680416020,1.10820515,90.256,90.207,1.52431002]
[1772680416726,11.07900825,90.261,90.207,1.52431002]
[1772680416899,1.10820515,90.26,90.207,1.52431002]
[1772680417711,1.41596036,90.259,90.209,1.52431002]
[1772680417920,11.07900825,90.261,90.209,1.52431002]
[1772680417921,1.41596036,90.257,90.209,1.52431002]
[1772680418519,1.10820515,90.258,90.208,38.79921957]
[1772680418520,1.41596036,90.286,90.214,1.52431002]
[1772680419113,1.41596036,90.279,90.214,1.52431002]
[1772680420831,1.41596036,90.277,90.216,1.52431002]
[1772680421624,1.41596036,90.269,90.215,11.08463115]
[1772680421827,1.41596036,90.259,90.215,11.08463115]
[1772680422031,1.41596036,90.259,90.216,1.52431002]
[1772680422524,1.41596036,90.259,90.215,11.08463115]
[1772680423118,1.41596036,90.257,90.215,1.52431002]
[1772680424351,1.41596036,90.255,90.216,11.08450829]
[1772680425234,11.07959581,90.256,90.179,1.52431002]
[1772680425235,4.2439669,90.24,90.179,1.52431002]
[1772680425430,4.2439669,90.22,90.179,1.52431002]
[1772680427532,38.79448896,90.219,90.181,1.52431002]
[1772680427737,4.2439669,90.19,90.156,1.52431002]
[1772680428436,4.2439669,90.19,90.148,1.52431002]
[1772680429139,4.2439669,90.18,90.148,1.52431002]
[1772680429734,3.69383402,90.21,90.15,1.4816193]
[1772680429735,4.2439669,90.2,90.15,1.4816193]
[1772680431340,4.2439669,90.18,90.142,1.4816193]
[1772680431717,11.08905621,90.179,90.144,1.4816193]
[1772680431918,38.81169673,90.179,90.144,1.4816193]
[1772680435324,11.08905621,90.179,90.146,1.4816193]
[1772680438147,11.08782667,90.189,90.148,1.4816193]
[1772680438324,38.80739335,90.189,90.148,1.4816193]
[1772680439225,11.08782667,90.189,90.148,1.4816193]
[1772680439645,4.2439669,90.22,90.151,1.4816193]
[1772680440142,4.2439669,90.22,90.156,1.4816193]
[1772680440350,4.2439669,90.23,90.156,1.4816193]
[1772680440827,4.2439669,90.22,90.156,1.4816193]
[1772680442043,4.2439669,90.22,90.158,1.4816193]
[1772680443650,0.02157665,90.219,90.158,1.4816193]
[1772680443944,0.02157665,90.209,90.158,1.4816193]
[1772680444155,0.02157665,90.208,90.16,1.4816193]
[1772680445234,0.02958601,90.199,90.16,1.4816193]
[1772680449255,4.2439669,90.19,90.161,12.57288936]
[1772680449430,0.05868239,90.189,90.155,1.4816193]
[1772680450839,0.07593558,90.188,90.155,1.4816193]
[1772680452045,0.07593558,90.188,90.157,1.4816193]
[1772680453040,0.07593558,90.188,90.159,1.4816193]
[1772680455655,0.11219072,90.206,90.159,1.4816193]
[1772680455848,0.11219072,90.199,90.161,1.4816193]
[1772680459468,0.1396874,90.198,90.163,1.4816193]
[1772680461751,55.41885571,90.222,90.129,3.69383402]
[1772680461752,0.15743169,90.218,90.165,1.4816193]
[1772680464669,11.26104101,90.217,90.167,1.4816193]
[1772680464866,0.17665559,90.216,90.167,1.4816193]
[1772680465264,11.08385738,90.222,90.167,1.4816193]
[1772680466852,11.08385738,90.222,90.169,1.55440496]
[1772680467977,0.20135735,90.227,90.171,1.55440496]
[1772680469979,0.21321725,90.225,90.173,1.55440496]
[1772680473760,0.21321725,90.225,90.155,104.4]
[1772680473761,0.23410884,90.219,90.175,1.55440496]
[1772680474694,0.23969994,90.226,90.175,1.55440496]
[1772680475674,0.24521876,90.238,90.177,1.55440496]
[1772680479372,0.26142298,90.236,90.179,1.55440496]
[1772680483572,0.27619257,90.234,90.181,1.55440496]
[1772680485889,0.28641367,90.232,90.183,1.55440496]
[1772680486296,4.2439669,90.25,90.183,1.55440496]
[1772680486297,0.28641367,90.24,90.183,1.55440496]
[1772680486592,0.28641367,90.24,90.186,1.55440496]
[1772680487603,0.29438464,90.253,90.189,0.28432314]
[1772680487775,0.29438464,90.259,90.192,1.55440496]
[1772680487976,0.29438464,90.259,90.194,1.55440496]
[1772680489995,0.30601678,90.257,90.199,1.63039404]
[1772680492085,0.31151665,90.281,90.203,1.63039404]
[1772680492286,0.31151665,90.279,90.212,1.63039404]
[1772680492482,0.31151665,90.269,90.212,1.63039404]
[1772680493372,0.31524477,90.267,90.214,1.63039404]
[1772680493577,0.31893171,90.249,90.213,11.0848769]
[1772680494001,0.31893171,90.249,90.214,1.63039404]
[1772680497576,11.0799479,90.254,90.216,1.63039404]
[1772680497784,11.41530865,90.254,90.216,1.63039404]
[1772680498391,0.33536075,90.253,90.216,1.63039404]
[1772680499379,0.33884152,90.239,90.198,1.63039404]
[1772680499599,0.33884152,90.237,90.2,1.63039404]
[1772680499973,0.34225682,90.252,90.2,1.63039404]
[1772680500179,0.34225682,90.251,90.2,1.63039404]
[1772680500703,0.34225682,90.249,90.2,1.63039404]
[1772680501411,0.34563616,90.239,90.199,11.08659741]
[1772680501787,0.34897435,90.237,90.199,1.63039404]
[1772680502891,11.08180589,90.238,90.199,1.63039404]
[1772680503091,16.2536831,90.28,90.206,0.14216157]
[1772680503291,20.49822936,90.28,90.215,1.6577478]
[1772680503489,48.18985541,90.28,90.215,1.6577478]
[1772680503891,4.24454626,90.27,90.217,1.6577478]
[1772680504092,43.94530915,90.28,90.217,1.6577478]
[1772680504093,4.24454626,90.26,90.217,1.6577478]
[1772680504307,4.24454626,90.25,90.217,1.6577478]
[1772680504492,4.24454626,90.25,90.216,11.08450829]
[1772680504694,4.24454626,90.25,90.212,11.08497065]
[1772680504994,4.24454626,90.24,90.204,1.6577478]
[1772680505810,4.24454626,90.24,90.204,12.74372198]
[1772680506196,11.08180589,90.238,90.204,12.74372198]
[1772680507510,11.08180589,90.238,90.205,1.6577478]
[1772680508409,11.0799641,90.253,90.205,1.6577478]
[1772680509007,11.0784911,90.265,90.205,1.6577478]
[1772680509213,4.24454626,90.28,90.205,1.6577478]
[1772680509418,4.24454626,90.28,90.198,3.69383402]
[1772680509419,0.1,90.3,90.215,1.6577478]
[1772680509604,0.12197288,90.3,90.233,0.28432314]
[1772680509806,0.12197288,90.3,90.244,1.6577478]
[1772680510110,0.1,90.3,90.244,1.6577478]
[1772680510615,2.5,90.299,90.244,1.6577478]
[1772680510816,0.02524765,90.298,90.244,1.6577478]
[1772680512209,0.02524765,90.298,90.249,1.6577478]
[1772680514224,0.03279544,90.295,90.251,1.6577478]
[1772680514818,13.57465082,90.297,90.251,1.6577478]
[1772680515022,0.03594398,90.296,90.251,1.6577478]
[1772680516819,0.03594398,90.296,90.252,11.08008686]
[1772680517122,0.03594398,90.296,90.253,1.6577478]
[1772680517710,0.04516969,90.294,90.253,1.6577478]
[1772680519122,0.04516969,90.294,90.255,1.6577478]
[1772680520726,0.04516969,90.294,90.257,1.6577478]
[1772680521106,0.05698235,90.292,90.257,1.6577478]
[1772680522206,11.13216066,90.292,90.258,11.0793503]
[1772680522418,0.05984649,90.291,90.259,1.6577478]
[1772680522820,32.03028038,90.3,90.262,1.6577478]
[1772680522821,0.06267697,90.297,90.262,1.6577478]
[1772680523017,0.06267697,90.295,90.262,1.6577478]
[1772680524431,0.06267697,90.295,90.263,11.07873658]
[1772680524629,4.34454626,90.3,90.263,11.07873658]
[1772680524630,0.06619168,90.293,90.263,11.07873658]
[1772680526128,2.5,90.294,90.256,1.6577478]
[1772680526129,0.07170674,90.289,90.258,11.07926205]
[1772680526320,0.07170674,90.288,90.258,11.07926205]
[1772680527829,0.07170674,90.288,90.258,1.6577478]
[1772680529332,0.1,90.3,90.26,1.6577478]
[1772680530031,0.08447396,90.299,90.26,1.6577478]
[1772680531032,0.08447396,90.299,90.262,1.6577478]
[1772680534334,0.08447396,90.299,90.264,1.6577478]
[1772680535737,0.08447396,90.299,90.266,1.6577478]
[1772680536116,0.08447396,90.299,90.265,11.0784911]
[1772680536962,0.08447396,90.299,90.253,27.69964327]
[1772680537142,0.09776419,90.279,90.236,1.6577478]
[1772680537332,0.09776419,90.269,90.236,1.6577478]
[1772680538028,0.09776419,90.269,90.238,1.6577478]
[1772680539624,11.06377141,90.279,90.238,1.6577478]
[1772680540229,11.06377141,90.279,90.24,1.70662989]
[1772680543346,38.76450433,90.289,90.242,1.70662989]
[1772680547746,0.02398832,90.288,90.244,1.70662989]
[1772680549632,0.02398832,90.288,90.245,11.08094631]
[1772680549852,0.02398832,90.288,90.246,1.70662989]
[1772680551859,0.02398832,90.288,90.248,1.70662989]
[1772680552758,0.02398832,90.288,90.249,11.08045518]
[1772680553061,11.07431975,90.299,90.25,1.70662989]
[1772680553444,0.03684692,90.298,90.25,1.70662989]
[1772680555159,0.03684692,90.298,90.252,1.70662989]
[1772680556740,0.03684692,90.298,90.254,1.70662989]
[1772680557240,0.1,90.3,90.254,1.70662989]
[1772680557241,0.04489992,90.299,90.254,1.70662989]
[1772680557840,0.1,90.3,90.254,1.70662989]
[1772680558961,0.1,90.3,90.256,1.70662989]
[1772680560646,0.15257814,90.3,90.256,1.70662989]
[1772680561242,0.15257814,90.3,90.257,38.77815571]
[1772680561443,0.15257814,90.3,90.258,1.70662989]
[1772680562547,0.15257814,90.3,90.237,1.10819286]
[1772680562548,0.05444851,90.299,90.26,1.70662989]
[1772680563860,0.1,90.3,90.26,1.70662989]
[1772680564363,0.1,90.3,90.262,1.70662989]
[1772680566142,0.06387755,90.299,90.262,1.70662989]
[1772680566359,0.06387755,90.299,90.264,1.70662989]
[1772680569250,0.06387755,90.299,90.266,1.70662989]
[1772680570349,0.06387755,90.299,90.268,1.70662989]
[1772680570770,0.06387755,90.299,90.267,11.07824564]
[1772680572364,0.07204927,90.298,90.267,1.70662989]
[1772680573566,0.1,90.3,90.267,1.70662989]
[1772680575067,0.07488082,90.299,90.269,1.70662989]
[1772680575869,0.1,90.3,90.269,1.70662989]
[1772680576769,0.1,90.3,90.27,11.07787747]
[1772680576973,0.1,90.3,90.271,1.70662989]
[1772680578981,0.1,90.3,90.272,11.07763204]
[1772680579179,0.1,90.3,90.273,1.70662989]
[1772680582264,0.1,90.3,90.275,1.70662989]
[1772680583377,0.1,90.3,90.277,1.70662989]
[1772680584068,0.19846745,90.3,90.277,1.70662989]
[1772680584380,0.09846745,90.299,90.277,1.70662989]
[1772680584863,0.1,90.3,90.277,1.70662989]
[1772680585577,0.1,90.3,90.279,1.70662989]
[1772680588372,0.1,90.3,90.281,1.70662989]
[1772680588679,0.1084168,90.299,90.28,10.96474499]
[1772680590282,0.1084168,90.299,90.272,1.76258261]
[1772680591386,0.1,90.3,90.274,1.76258261]
[1772680593883,0.1,90.3,90.276,1.76258261]
[1772680594688,27.67739076,90.327,90.275,38.77042369]
[1772680594689,0.10426733,90.337,90.309,1.67417054]
[1772680594880,0.30426733,90.35,90.309,1.67417054]
[1772680595186,0.1,90.35,90.31,1.67417054]
[1772680595570,11.06819112,90.349,90.31,1.67417054]
[1772680595772,0.30571074,90.348,90.31,1.67417054]
[1772680596485,0.1,90.35,90.312,1.67417054]
[1772680599397,0.1,90.35,90.314,1.67417054]
[1772680600375,0.1,90.35,90.316,1.67417054]
[1772680601398,0.41274038,90.35,90.316,1.67417054]
[1772680601582,0.31274038,90.349,90.316,1.67417054]
[1772680603498,0.31457064,90.347,90.318,1.67417054]
[1772680606501,0.31457064,90.347,90.32,1.67417054]
[1772680607299,0.3180222,90.345,90.319,11.07186749]
[1772680607472,0.3180222,90.345,90.311,11.07279974]
[1772680607670,0.3180222,90.345,90.276,104.4]
[1772680607671,0.3180222,90.345,90.306,11.07334174]
[1772680608099,0.3180222,90.345,90.306,12.74751228]
[1772680608394,0.3180222,90.345,90.199,27.68667542]
[1772680608395,0.31885999,90.339,90.287,1.67417054]
[1772680609491,0.32053994,90.337,90.288,1.61455181]
[1772680611884,38.7442437,90.336,90.289,11.0755463]
[1772680612085,0.32508514,90.335,90.29,1.61455181]
[1772680615301,0.32735546,90.333,90.292,1.61455181]
[1772680619304,0.33443175,90.331,90.294,1.61455181]
[1772680621208,0.3336943,90.329,90.296,1.61455181]
[1772680621709,4.23672757,90.32,90.286,11.07587158]
[1772680621913,0.33230814,90.319,90.286,11.07587158]
[1772680622313,0.33230814,90.319,90.287,1.61455181]
[1772680622697,0.3329826,90.329,90.287,1.61455181]
[1772680623915,0.33364754,90.327,90.289,1.61455181]
[1772680627417,0.33558296,90.325,90.291,1.61455181]
[1772680628127,0.33625104,90.319,90.262,1.61455181]
[1772680628413,0.33625104,90.319,90.267,1.61455181]
[1772680629394,11.40885832,90.318,90.269,1.61455181]
[1772680629617,0.33686825,90.317,90.269,1.61455181]
[1772680630611,11.07223526,90.316,90.271,1.61455181]
[1772680630897,11.07182774,90.32,90.271,1.61455181]
[1772680632916,11.07182774,90.32,90.273,1.61455181]
[1772680635532,0.33813819,90.324,90.275,1.61455181]
[1772680637028,11.41099852,90.323,90.277,1.61455181]
[1772680637826,0.34020796,90.322,90.277,1.61455181]
[1772680639315,0.34020796,90.322,90.276,38.76999423]
[1772680639316,0.34134553,90.32,90.279,1.67303278]
[1772680641328,0.34245997,90.318,90.281,1.67303278]
[1772680644311,0.34245997,90.318,90.282,38.76741764]
[1772680644518,0.34245997,90.318,90.283,1.67303278]
[1772680644717,11.4182547,90.323,90.283,1.67303278]
[1772680644907,0.34679723,90.322,90.283,1.67303278]
[1772680648130,0.34679723,90.322,90.285,1.6221531]
[1772680648925,11.42306235,90.321,90.285,1.6221531]
[1772680649136,0.35144003,90.32,90.285,1.6221531]
[1772680651112,0.35144003,90.32,90.259,1.6221531]
[1772680651321,0.35237798,90.318,90.26,1.6221531]
[1772680654536,0.3517016,90.316,90.262,1.6221531]
[1772680656936,0.35308851,90.314,90.264,1.6221531]
[1772680658240,0.35352559,90.312,90.266,1.6221531]
[1772680660336,0.35437959,90.31,90.268,1.6221531]
[1772680665421,0.35104608,90.308,90.27,1.6221531]
[1772680668517,0.34485304,90.306,90.272,1.6221531]
[1772680671239,0.33947989,90.304,90.274,1.70196694]
[1772680673230,0.33947989,90.304,90.269,1.70196694]
[1772680674042,0.33556667,90.302,90.269,1.70196694]
[1772680675145,11.07407448,90.301,90.269,1.70196694]
[1772680675447,0.3343005,90.3,90.269,1.70196694]
[1772680676643,0.33508266,90.299,90.254,1.70196694]
[1772680677334,39.09435701,90.298,90.256,1.70196694]
[1772680677944,0.33462795,90.297,90.256,1.70196694]
[1772680679538,11.07468769,90.296,90.257,11.07947306]
[1772680679740,11.07468769,90.296,90.258,1.70196694]
[1772680680448,0.33209128,90.305,90.258,1.70196694]
[1772680682238,0.32968849,90.303,90.26,1.70196694]
[1772680683052,0.32850035,90.299,90.26,1.70196694]
[1772680683955,0.32732111,90.297,90.26,1.70196694]
[1772680685854,0.32500373,90.295,90.26,1.70196694]
[1772680688952,0.31777375,90.293,90.26,1.70196694]
[1772680693752,38.76312408,90.292,90.239,27.70399112]
[1772680693954,0.31078869,90.289,90.241,1.70196694]
[1772680695963,0.30692842,90.287,90.243,1.70196694]
[1772680696941,4.2374539,90.28,90.243,1.70196694]
[1772680697151,0.30599581,90.279,90.243,1.70196694]
[1772680699359,0.3052576,90.277,90.245,1.68595658]
[1772680699849,0.3052576,90.277,90.24,1.68595658]
[1772680700047,0.30434628,90.269,90.235,1.68595658]
[1772680700963,0.30149827,90.259,90.224,1.68595658]
[1772680701663,0.30149827,90.257,90.224,1.68595658]
[1772680702352,0.30063741,90.249,90.224,1.68595658]
[1772680702862,0.2997884,90.239,90.217,1.68595658]
[1772680703066,0.2997884,90.239,90.212,1.68595658]
[1772680704169,0.29897571,90.229,90.192,1.68595658]
[1772680704577,0.29897571,90.219,90.192,1.68595658]
[1772680705168,0.29814932,90.273,90.194,1.68595658]
[1772680705372,0.29814932,90.273,90.204,1.68595658]
[1772680705373,0.29814932,90.272,90.204,1.68595658]
[1772680705562,0.29814932,90.269,90.204,1.68595658]
[1772680705865,0.29736223,90.259,90.204,1.68595658]
[1772680707248,11.07877658,90.263,90.206,1.61919371]
[1772680707666,0.29574023,90.262,90.206,1.61919371]
[1772680710258,0.29141327,90.26,90.208,1.61919371]
[1772680714088,0.29054491,90.258,90.21,1.61919371]
[1772680716276,0.28908122,90.229,90.198,1.61919371]
[1772680717663,0.28573621,90.219,90.191,1.61919371]
[1772680717884,0.28573621,90.219,90.19,0.2]
[1772680718182,0.28573621,90.217,90.19,0.2]
[1772680720290,0.28050537,90.215,90.19,0.2]
[1772680722479,0.27763163,90.213,90.19,0.2]
[1772680724093,0.2731579,90.209,90.19,0.2]
[1772680724786,11.0854913,90.208,90.19,0.2]
[1772680724987,0.27095925,90.207,90.19,0.2]
[1772680726295,11.08573709,90.206,90.19,0.2]
[1772680726675,11.08573709,90.206,90.19,1.81919371]
[1772680727296,11.0849482,90.213,90.19,1.81919371]
[1772680728690,11.08426256,90.218,90.19,1.81919371]
[1772680731497,11.33874483,90.218,90.19,1.81919371]
[1772680732199,0.25249164,90.217,90.19,1.81919371]
[1772680733496,0.25052578,90.199,90.18,0.2]
[1772680734007,0.2485681,90.189,90.166,1.61258261]
[1772680734179,4.24706825,90.19,90.09,7.63530861]
[1772680734180,0.2485681,90.187,90.159,1.61258261]
[1772680734781,0.2485681,90.187,90.16,1.81258261]
[1772680736083,0.2485681,90.187,90.161,1.61258261]
[1772680736593,103.45109135,90.219,90.16,11.29138763]
[1772680736594,11.0864745,90.2,90.163,1.61258261]
[1772680737282,38.80266075,90.2,90.163,1.61258261]
[1772680737494,0.2410657,90.199,90.163,1.61258261]
[1772680740205,0.2410657,90.199,90.162,11.09114704]
[1772680740206,0.23568128,90.179,90.16,1e-08]
[1772680740887,4.24706825,90.15,90.14,0.2]
[1772680741092,4.24706825,90.15,90.14,1e-08]
[1772680741406,1.63429157,90.152,90.14,1e-08]
[1772680742206,11.09238589,90.152,90.14,1e-08]
[1772680743004,4.24706825,90.15,90.14,1e-08]
[1772680743180,1.63429157,90.149,90.14,1e-08]
[1772680743584,1.63429157,90.149,90.124,1.57941648]
[1772680744306,11.0928695,90.148,90.13,1.67941648]
[1772680745290,48.05036002,90.179,90.13,1.67941648]
[1772680745291,1.63429157,90.168,90.13,1.67941648]
[1772680745908,38.81600105,90.169,90.13,0.1]
[1772680745909,1.63429157,90.159,90.13,0.1]
[1772680746093,1.63429157,90.149,90.13,0.1]
[1772680746299,1.63429157,90.139,90.11,1.77941648]
[1772680746489,4.24706825,90.14,90.12,1e-08]
[1772680746490,1.63429157,90.137,90.12,1e-08]
[1772680747123,11.09410015,90.138,90.12,1.57941649]
[1772680747309,11.09410015,90.138,90.12,2.6e-06]
[1772680747608,11.09410015,90.138,90.117,11.09667968]
[1772680747808,11.09348694,90.143,90.117,11.09667968]
[1772680749009,27.72929602,90.158,90.111,38.84098499]
[1772680749010,1.63429157,90.157,90.111,38.84098499]
[1772680749205,4.24706825,90.15,90.111,11.09742428]
[1772680749387,4.24706825,90.13,90.11,0.2]
[1772680749586,1.63429157,90.119,90.1,0.1]
[1772680751009,1.63429157,90.117,90.1,0.1]
[1772680751808,1.63429157,90.109,90.09,0.2]
[1772680752695,4.24706825,90.11,90.091,1.57941648]
[1772680752895,11.09520797,90.129,90.094,1.57941648]
[1772680753194,38.83322791,90.129,90.094,1.57941648]
[1772680753399,3.69383402,90.152,90.094,1.57941648]
[1772680753400,11.09463738,90.134,90.094,1.57941648]
[1772680753895,11.09274645,90.149,90.094,1.57941648]
[1772680754104,12.72703802,90.149,90.094,1.57941648]
[1772680754393,1.63429157,90.148,90.094,1.57941648]
[1772680754602,1.63429157,90.129,90.094,1.57941648]
[1772680755612,11.09533108,90.128,90.096,1.57941648]
[1772680755797,1.63429157,90.127,90.096,1.57941648]
[1772680756597,1.63429157,90.119,90.096,1.57941648]
[1772680757909,12.73085385,90.118,90.096,1.57941648]
[1772680758111,1.63429157,90.117,90.09,1.77941648]
[1772680758309,1.63429157,90.117,90.092,1.57941648]
[1772680758814,38.83796799,90.118,90.092,1.57941648]
[1772680758815,11.09656228,90.118,90.092,1.57941648]
[1772680759699,1.71891428,90.117,90.092,1.57941648]
[1772680760105,1.71891428,90.115,90.092,1.57941648]
[1772680760712,1.71891428,90.115,90.09,0.2]
[1772680762611,1.71891428,90.113,90.09,0.2]
[1772680765221,1.71891428,90.111,90.09,0.2]
[1772680766027,1.71891428,90.111,90.09,1.8970115]
[1772680767823,27.74140571,90.118,90.09,1.8970115]
[1772680768122,11.09591299,90.124,90.092,1.66241872]
[1772680770923,11.09591299,90.124,90.093,11.09964148]
[1772680771109,11.09591299,90.124,90.094,1.66241872]
[1772680771808,1.73568866,90.123,90.094,1.66241872]
[1772680772115,1.73568866,90.119,90.09,0.2]
[1772680772432,1.73568866,90.099,90.059,1.66241872]
[1772680772616,1.73568866,90.09,90.063,1.66241872]
[1772680773829,11.10013431,90.089,90.063,1.66241872]
[1772680774130,1.73568866,90.088,90.063,1.66241872]
[1772680775910,11.10038074,90.087,90.063,1.66241872]
[1772680777034,12.8360694,90.087,90.063,1.66241872]
[1772680779113,11.09890231,90.099,90.065,1.66241872]
[1772680779330,1.73568866,90.103,90.065,1.66241872]
[1772680781734,1.73568866,90.099,90.065,1.66241872]
[1772680784958,1.73568866,90.097,90.065,1.66241872]
[1772680785435,11.0990255,90.098,90.067,1.66241872]
[1772680785942,1.73568866,90.119,90.067,1.66241872]
[1772680787027,1.73568866,90.117,90.069,1.66241872]
[1772680789240,1.61747497,90.109,90.071,1.69871743]
[1772680791234,1.61747497,90.107,90.073,1.69871743]
[1772680793136,1.61747497,90.12,90.073,1.69871743]
[1772680793335,11.09683931,90.116,90.075,1.69871743]
[1772680793639,1.61747497,90.115,90.075,1.69871743]
[1772680794831,11.09705484,90.114,90.077,1.69871743]
[1772680795226,1.61747497,90.113,90.077,1.69871743]
[1772680796039,11.09705484,90.114,90.077,1.69871743]
[1772680798646,1.61747497,90.117,90.079,1.69871743]
[1772680800743,1.61747497,90.115,90.081,1.69871743]
[1772680801546,1.61747497,90.115,90.068,1.69871743]
[1772680801746,1.61747497,90.109,90.068,1.69871743]
[1772680802343,1.61747497,90.099,90.068,1.69871743]
[1772680802743,1.61747497,90.097,90.068,1.69871743]
[1772680802946,1.61747497,90.097,90.07,1.69871743]
[1772680803136,11.0990255,90.098,90.07,1.69871743]
[1772680803336,11.09767059,90.109,90.07,1.69871743]
[1772680803638,12.71514556,90.109,90.07,1.69871743]
[1772680804552,11.09767059,90.109,90.072,1.69871743]
[1772680806252,11.09705484,90.114,90.072,1.69871743]
[1772680806456,1.61747497,90.119,90.074,1.69871743]
[1772680810071,1.61747497,90.132,90.076,1.69871743]
[1772680810259,1.61747497,90.149,90.076,1.69871743]
[1772680810644,1.61747497,90.139,90.076,1.69871743]
[1772680811447,1.61747497,90.139,90.079,1.98304057]
[1772680811653,1.61747497,90.149,90.079,1.98304057]
[1772680811966,1.61747497,90.148,90.083,3.69383402]
[1772680812141,1.61747497,90.148,90.084,1.98304057]
[1772680812464,1.61747497,90.158,90.093,1.69871743]
[1772680812657,1.61747497,90.169,90.105,1.69871743]
[1772680813963,1.61747497,90.169,90.107,1.69871743]
[1772680814263,1.61747497,90.167,90.107,1.69871743]
[1772680814964,12.7071368,90.175,90.11,1.840879]
[1772680815151,1.61747497,90.174,90.11,1.840879]
[1772680815545,12.70636404,90.181,90.112,1.69871743]
[1772680815746,12.70636404,90.181,90.116,1.69871743]
[1772680815968,1.61747497,90.18,90.116,1.69871743]
[1772680816262,1.61747497,90.178,90.121,1.69871743]
[1772680817664,1.61747497,90.176,90.126,1.69871743]
[1772680818269,11.08930215,90.177,90.126,1.69871743]
[1772680818659,1.71458881,90.181,90.126,1.69871743]
[1772680819969,1.71458881,90.179,90.128,1.6992297]
[1772680822074,1.71458881,90.169,90.13,1.6992297]
[1772680822264,38.81212711,90.178,90.119,1.6992297]
[1772680822265,1.71458881,90.159,90.119,1.6992297]
[1772680824658,1.71458881,90.159,90.098,3.69383402]